bitfinex/quotes_SOLUSD_20250415
["timestamp","ask_amount","ask_price","bid_price","bid_amount"]
[1744727188180,25.6755,130.68,130.65,53.78931132]
[1744727188362,25.6755,130.68,130.64,53.78931132]
[1744727188556,25.6755,130.68,130.65,53.78931132]
[1744727188751,0.063,130.68,130.65,53.78931132]
[1744727189260,0.063,130.68,130.62,7.6557]
[1744727189473,53.85231132,130.68,130.63,53.78931132]
[1744727189667,135.38931132,130.67,130.62,53.78931132]
[1744727189864,81.6,130.67,130.63,53.78931132]
[1744727190077,135.38931132,130.67,130.62,53.78931132]
[1744727190281,53.78931132,130.65,130.58,7.6581]
[1744727190588,26.0,130.61,130.53,7.6908]
[1744727190881,61.44741132,130.58,130.53,53.81931132]
[1744727191287,52.8034,130.58,130.53,0.03]
[1744727191457,53.78931132,130.54,130.53,0.03]
[1744727192157,317.53606018,130.54,130.53,0.0001]
[1744727192360,343.53606018,130.54,130.53,0.0001]
[1744727192776,351.19646018,130.54,130.53,0.0001]
[1744727193075,26.0,130.5,130.47,0.03]
[1744727193259,72.43896018,130.48,130.47,0.03]
[1744727193465,53.78931132,130.48,130.47,0.03]
[1744727193672,71.74931132,130.49,130.47,0.03]
[1744727194294,17.96,130.49,130.48,53.78931132]
[1744727194663,26.0,130.53,130.48,53.78931132]
[1744727194891,33.6611,130.53,130.49,53.78931132]
[1744727195266,87.45041132,130.53,130.47,0.03]
[1744727195466,61.45041132,130.53,130.47,0.03]
[1744727195787,256.78,130.54,130.47,0.03]
[1744727195788,264.4406,130.54,130.5,53.78931132]
[1744727196161,264.4406,130.54,130.47,7.6944]
[1744727196488,264.4406,130.54,130.5,53.78931132]
[1744727196683,256.78,130.54,130.51,53.78931132]
[1744727197400,256.78,130.54,130.5,7.6627]
[1744727197592,256.78,130.54,130.51,53.78931132]
[1744727197762,264.4404,130.54,130.49,7.6632]
[1744727197968,256.78,130.54,130.51,53.78931132]
[1744727198560,17.96,130.54,130.53,53.78931132]
[1744727198989,17.96,130.54,130.49,26.8217]
[1744727199286,17.96,130.54,130.52,26.0]
[1744727199487,25.6205,130.54,130.49,33.6632]
[1744727199693,17.96,130.54,130.5,53.78931132]
[1744727199923,17.96,130.54,130.51,53.78931132]
[1744727200278,115.2582,130.58,130.53,53.78931132]
[1744727200586,115.2582,130.58,130.49,52.31284886]
[1744727200587,53.78931132,130.56,130.49,33.6632]
[1744727200801,53.78931132,130.54,130.47,0.03]
[1744727200977,53.78931132,130.48,130.47,0.03]
[1744727201187,17.96,130.5,130.47,0.03]
[1744727201390,53.78931132,130.49,130.47,0.03]
[1744727201572,53.78931132,130.48,130.47,0.03]
[1744727202218,72.43896018,130.48,130.46,0.03]
[1744727202375,180.03896018,130.47,130.46,0.03]
[1744727202578,161.38931132,130.47,130.46,0.03]
[1744727203106,169.05381132,130.47,130.46,0.03]
[1744727203308,187.70346018,130.47,130.37,33.6702]
[1744727203483,53.78931132,130.43,130.38,53.78931132]
[1744727203816,53.78931132,130.43,130.37,33.6702]
[1744727203817,53.78931132,130.43,130.39,53.78931132]
[1744727203985,53.78931132,130.43,130.38,53.78931132]
[1744727204181,53.78931132,130.43,130.39,53.78931132]
[1744727204396,81.6,130.46,130.41,53.78931132]
[1744727204601,53.78931132,130.44,130.39,53.78931132]
[1744727204799,53.78931132,130.45,130.41,53.78931132]
[1744727205010,81.6,130.46,130.42,53.78931132]
[1744727205218,258.1387,130.49,130.44,53.78931132]
[1744727205219,238.98,130.49,130.44,53.78931132]
[1744727205397,238.98,130.49,130.45,53.78931132]
[1744727205709,300.43291132,130.49,130.44,53.78931132]
[1744727206010,53.78931132,130.47,130.42,53.78931132]
[1744727206211,53.78931132,130.45,130.39,33.6692]
[1744727206504,53.78931132,130.45,130.4,53.78931132]
[1744727206707,53.78931132,130.45,130.39,26.0]
[1744727206708,53.78931132,130.44,130.39,53.78931132]
[1744727207084,61.45601132,130.44,130.39,53.78931132]
[1744727207388,7.6667,130.44,130.39,7.6692]
[1744727207594,61.45601132,130.44,130.39,53.78931132]
[1744727207792,7.6667,130.44,130.4,53.78931132]
[1744727207986,61.45601132,130.44,130.39,61.45841132]
[1744727208380,61.45601132,130.44,130.38,33.6696]
[1744727208683,53.78931132,130.42,130.38,53.78931132]
[1744727208902,17.96,130.43,130.38,53.78931132]
[1744727209204,26.0,130.36,130.33,0.03]
[1744727209387,53.78931132,130.34,130.33,0.03]
[1744727209600,107.57862264,130.34,130.33,0.03]
[1744727210298,152.2282715,130.34,130.27,2.7646559]
[1744727210602,20.0,130.24,130.15,3.88224957]
[1744727210806,53.78931132,130.21,130.15,3.88224957]
[1744727211115,61.47121132,130.18,130.13,53.78931132]
[1744727211285,7.6819,130.18,130.11,65.65864037]
[1744727211485,7.6819,130.18,130.13,53.78931132]
[1744727211787,7.6819,130.18,130.11,11.86932905]
[1744727211788,53.78931132,130.15,130.11,11.86932905]
[1744727212188,71.74931132,130.16,130.11,11.86932905]
[1744727212596,53.78931132,130.14,130.11,11.86932905]
[1744727212905,17.96,130.16,130.12,53.78931132]
[1744727213082,17.96,130.16,130.11,65.65864037]
[1744727213281,17.96,130.16,130.11,11.86932905]
[1744727213597,71.74931132,130.16,130.11,65.65864037]
[1744727213799,53.78931132,130.15,130.11,11.86932905]
[1744727214107,53.78931132,130.13,130.04,7.6895]
[1744727214275,26.0,130.14,130.03,1.6363]
[1744727214481,257.3,130.16,130.12,53.78931132]
[1744727214683,17.96,130.16,130.13,53.78931132]
[1744727215006,53.78931132,130.19,130.14,53.78931132]
[1744727215306,53.78931132,130.17,130.09,26.0]
[1744727215475,53.78931132,130.15,130.09,26.0]
[1744727215677,53.78931132,130.13,130.03,9.3262]
[1744727215897,53.78931132,130.13,130.05,0.03]
[1744727216094,98.43896018,130.06,130.05,0.03]
[1744727216305,18.64964886,130.04,130.0,2.7646559]
[1744727216500,53.78931132,130.01,130.0,2.7646559]
[1744727216678,239.34,130.01,130.0,2.7646559]
[1744727216882,17.98,130.01,130.0,2.7646559]
[1744727217113,53.78931132,130.03,130.0,2.7646559]
[1744727217295,71.76931132,130.03,130.0,2.7646559]
[1744727217685,17.98,130.03,130.0,2.7646559]
[1744727217884,17.98,130.03,130.02,53.78931132]
[1744727218212,239.46,130.07,130.0,2.7646559]
[1744727218418,17.98,130.05,130.0,56.55396722]
[1744727218597,17.98,130.05,130.01,53.78931132]
[1744727218910,17.98,130.05,130.0,10.4568559]
[1744727219218,17.98,130.05,130.0,2.7646559]
[1744727219391,53.78931132,130.03,130.0,2.7646559]
[1744727219583,71.76931132,130.05,130.0,2.7646559]
[1744727219785,239.46,130.07,130.02,53.78931132]
[1744727220099,239.46,130.07,130.05,53.78931132]
[1744727220426,44.6124,130.16,130.07,26.0]
[1744727220590,17.98,130.16,130.15,53.78931132]
[1744727220787,6.381,130.22,130.15,53.78931132]
[1744727220983,99.78931132,130.2,130.15,53.78931132]
[1744727221217,37.98,130.24,130.09,19.2172]
[1744727221393,73.78931132,130.23,130.13,53.78931132]
[1744727221593,79.78931132,130.22,130.17,53.78931132]
[1744727221807,20.0,130.17,130.07,7.6881]
[1744727221992,53.78931132,130.09,130.0,2.7646559]
[1744727222187,71.76931132,130.09,130.04,53.78931132]
[1744727222383,71.76931132,130.11,130.06,53.78931132]
[1744727222699,26.0,130.08,130.0,2.7646559]
[1744727222890,53.78931132,130.07,130.02,53.78931132]
[1744727223089,26.0,130.08,130.0,2.7646559]
[1744727223090,79.78931132,130.08,130.03,53.78931132]
[1744727223321,79.78931132,130.08,130.02,53.78931132]
[1744727223528,37.98,130.11,130.06,53.78931132]
[1744727223825,36.62964886,130.11,130.1,53.78931132]
[1744727224120,38.64964886,130.1,130.0,36.4565559]
[1744727224296,53.78931132,130.08,130.03,53.78931132]
[1744727224635,53.78931132,130.1,130.05,53.78931132]
[1744727224792,17.98,130.11,130.09,53.78931132]
[1744727224989,18.0,130.16,130.1,53.78931132]
[1744727225197,6.3362,130.22,130.15,53.78931132]
[1744727225198,18.0,130.21,130.15,53.78931132]
[1744727225402,73.78931132,130.2,130.07,18.64964886]
[1744727225720,53.78931132,130.18,130.13,53.78931132]
[1744727225918,20.0,130.2,130.14,53.78931132]
[1744727226214,53.78931132,130.19,130.14,53.78931132]
[1744727226385,53.78931132,130.19,130.09,26.0]
[1744727226585,44.8797,130.21,130.16,53.78931132]
[1744727226586,79.46931132,130.21,130.16,53.78931132]
[1744727226787,18.0,130.21,130.13,53.78931132]
[1744727227003,18.0,130.21,130.18,53.78931132]
[1744727227187,18.0,130.21,130.2,53.78931132]
[1744727227922,0.063,130.17,130.16,7.6823]
[1744727228127,0.063,130.17,130.16,61.47161132]
[1744727228619,0.063,130.25,130.16,125.32836018]
[1744727228819,0.063,130.25,130.23,53.78931132]
[1744727229024,0.063,130.25,130.24,53.78931132]
[1744727229311,0.063,130.25,130.24,61.46741132]
[1744727229519,0.063,130.25,130.16,57.06384886]
[1744727229520,0.063,130.25,130.14,6.1725]
[1744727229702,53.85231132,130.25,130.2,53.78931132]
[1744727229899,0.063,130.25,130.21,53.78931132]
[1744727230297,0.063,130.25,130.16,26.0]
[1744727230298,0.063,130.25,130.22,53.78931132]
[1744727230897,0.063,130.25,130.21,53.78931132]
[1744727231095,0.063,130.25,130.13,53.78931132]
[1744727231096,72.43896018,130.22,130.1,7.6863]
[1744727231302,61.47141132,130.18,130.1,7.6863]
[1744727231628,18.0,130.17,130.12,53.78931132]
[1744727231836,72.43896018,130.16,130.08,7.6875]
[1744727232135,72.43896018,130.13,130.08,53.78931132]
[1744727232321,72.43896018,130.13,130.03,25.2769]
[1744727232322,53.78931132,130.12,130.07,53.78931132]
[1744727232516,18.64964886,130.14,130.09,53.78931132]
[1744727232717,72.43896018,130.14,130.09,53.78931132]
[1744727232897,18.64964886,130.14,130.08,53.78931132]
[1744727233103,18.64964886,130.14,130.04,33.6899]
[1744727233104,72.43896018,130.12,130.07,53.78931132]
[1744727233298,53.78931132,130.12,130.08,7.6875]
[1744727233503,18.64964886,130.11,130.06,53.78931132]
[1744727233709,87.47451132,130.12,130.0,41.2238559]
[1744727233710,18.0,130.1,130.02,7.6911]
[1744727233911,53.78931132,130.08,130.02,7.6911]
[1744727234129,64.0,130.1,130.05,53.78931132]
[1744727234130,44.0,130.1,130.05,53.78931132]
[1744727234426,71.78931132,130.1,130.05,53.78931132]
[1744727234596,18.64964886,130.07,130.01,7.6915]
[1744727234804,26.0,130.09,130.05,53.78931132]
[1744727235218,26.0,130.09,130.01,26.9207]
[1744727235418,26.0,130.09,130.03,53.78931132]
[1744727235600,26.0,130.07,130.0,10.4567559]
[1744727235802,53.78931132,130.06,130.01,53.78931132]
[1744727236104,53.78931132,130.02,130.0,2.7646559]
[1744727236308,17.98,130.03,130.01,53.78931132]
[1744727236523,17.98,130.03,130.0,2.7646559]
[1744727236695,71.76931132,130.03,130.0,2.7646559]
[1744727236900,17.98,130.03,130.0,56.55396722]
[1744727237319,17.98,130.03,130.01,53.78931132]
[1744727237506,17.98,130.08,130.02,53.78931132]
[1744727237715,97.76931132,130.08,130.01,7.6911]
[1744727237912,17.98,130.08,130.05,53.78931132]
[1744727238121,17.98,130.08,130.01,7.6911]
[1744727238122,17.98,130.08,130.07,53.78931132]
[1744727238321,17.98,130.08,130.05,53.78931132]
[1744727238630,17.98,130.08,130.01,26.9203]
[1744727238815,17.98,130.08,130.07,53.78931132]
[1744727239450,17.98,130.08,130.04,26.0]
[1744727239605,17.98,130.13,130.07,53.78931132]
[1744727239801,17.98,130.13,130.04,26.0]
[1744727240039,53.78931132,130.12,130.07,53.78931132]
[1744727240340,79.45431132,130.13,130.08,53.78931132]
[1744727240522,239.62,130.17,130.07,26.0]
[1744727240834,53.78931132,130.16,130.11,53.78931132]
[1744727241011,53.78931132,130.15,130.1,53.78931132]
[1744727241216,53.78931132,130.13,130.08,53.78931132]
[1744727241412,61.47561132,130.11,130.02,26.0]
[1744727241640,71.76931132,130.1,130.04,53.78931132]
[1744727241930,26.0,130.09,130.01,53.78931132]
[1744727242131,26.0,130.09,130.04,53.78931132]
[1744727242315,79.78931132,130.09,130.04,53.78931132]
[1744727242722,79.78931132,130.09,130.0,10.4567559]
[1744727242913,53.78931132,130.04,130.0,2.7646559]
[1744727243741,53.78931132,130.01,130.0,2.7646559]
[1744727243900,99.58,130.03,130.0,2.7646559]
[1744727244106,53.78931132,130.02,130.0,2.7646559]
[1744727244532,53.78931132,130.01,130.0,2.7646559]
[1744727245106,72.43896018,130.01,130.0,2.7646559]
[1744727245306,53.78931132,130.01,130.0,2.7646559]
[1744727245508,61.48101132,130.01,130.0,2.7646559]
[1744727245728,80.13066018,130.01,130.0,2.7646559]
[1744727246027,68.97,130.0,129.99,0.03]
[1744727246204,99.78931132,130.0,129.99,0.03]
[1744727246407,118.43896018,130.0,129.99,0.0001]
[1744727247011,18.64964886,129.99,129.98,0.0001]
[1744727247335,46.0,129.95,129.89,53.78931132]
[1744727247516,46.0,129.95,129.87,7.6994]
[1744727247517,25.6762,129.94,129.87,7.6994]
[1744727247832,71.76931132,129.94,129.89,53.78931132]
[1744727248031,17.98,129.94,129.9,53.78931132]
[1744727248235,17.98,129.94,129.87,26.9494]
[1744727248408,17.98,129.99,129.93,53.78931132]
[1744727248616,17.98,129.99,129.96,53.78931132]
[1744727248821,17.98,129.99,129.95,53.78931132]
[1744727249533,25.6729,129.99,129.95,53.78931132]
[1744727249734,25.673,129.99,129.88,26.0]
[1744727250032,64.64964886,129.87,129.83,3.94688083]
[1744727250241,71.78931132,129.86,129.8,53.78931132]
[1744727250437,71.78931132,129.86,129.75,1.5529]
[1744727250438,97.78931132,129.9,129.84,53.78931132]
[1744727250623,53.78931132,129.89,129.84,53.78931132]
[1744727250821,53.78931132,129.89,129.83,53.78931132]
[1744727251436,53.78931132,129.87,129.79,3.94925195]
[1744727251736,53.78931132,129.88,129.83,53.78931132]
[1744727251931,18.0,129.9,129.86,53.78931132]
[1744727252132,239.94,129.94,129.89,53.78931132]
[1744727252308,18.0,129.95,129.9,53.78931132]
[1744727252633,18.0,129.95,129.93,53.78931132]
[1744727252827,53.78931132,130.0,129.94,53.78931132]
[1744727253130,239.94,130.02,129.97,53.78931132]
[1744727253335,53.78931132,130.01,129.96,53.78931132]
[1744727253526,7.6934,129.98,129.89,53.78931132]
[1744727253735,20.0,129.95,129.85,6.5383]
[1744727253917,53.78931132,129.91,129.85,32.5383]
[1744727254117,53.78931132,129.91,129.86,55.29591132]
[1744727254527,7.6934,129.98,129.9,53.78931132]
[1744727254726,53.78931132,129.96,129.91,53.78931132]
[1744727255439,25.6929,129.99,129.88,26.0]
[1744727255619,25.6929,129.99,129.93,53.78931132]
[1744727256144,53.78931132,129.98,129.88,33.6991]
[1744727256440,53.78931132,129.98,129.92,53.78931132]
[1744727257135,25.6929,129.99,129.92,53.78931132]
[1744727257136,53.78931132,129.97,129.92,53.78931132]
[1744727257320,53.78931132,129.96,129.88,26.0]
[1744727257527,53.78931132,129.93,129.82,7.7025]
[1744727257833,53.78931132,129.92,129.87,53.78931132]
[1744727258216,20.0,129.97,129.82,26.35214886]
[1744727258525,53.78931132,129.88,129.81,1.5356]
[1744727258841,71.78931132,129.91,129.86,53.78931132]
[1744727259223,71.78931132,129.91,129.82,26.0]
[1744727259422,71.78931132,129.91,129.85,53.78931132]
[1744727259626,53.78931132,129.89,129.84,53.78931132]
[1744727259824,18.0,129.91,129.85,53.78931132]
[1744727260023,53.78931132,129.9,129.85,53.78931132]
[1744727260547,71.78931132,129.91,129.84,26.0]
[1744727260745,71.78931132,129.91,129.86,53.78931132]
[1744727261127,18.0,129.91,129.86,53.78931132]
[1744727261329,25.6977,129.91,129.86,53.78931132]
[1744727261629,25.6946,129.96,129.89,53.78931132]
[1744727261833,53.78931132,129.94,129.89,53.78931132]
[1744727262141,53.78931132,129.93,129.84,33.7016]
[1744727262320,44.9312,129.96,129.84,26.0]
[1744727262523,25.6946,129.96,129.9,53.78931132]
[1744727262936,79.48391132,129.96,129.9,53.78931132]
[1744727263246,79.48391132,129.96,129.86,7.7]
[1744727263247,25.6946,129.96,129.88,7.6992]
[1744727263444,18.0,129.96,129.93,53.78931132]
[1744727263629,7.6942,129.97,129.94,53.78931132]
[1744727263943,7.6928,130.0,129.96,53.78931132]
[1744727264245,53.78931132,130.06,129.99,53.78931132]
[1744727264450,25.6875,130.08,130.0,53.78931132]
[1744727264645,53.78931132,130.06,129.96,26.0]
[1744727264828,53.78931132,130.07,130.02,53.78931132]
[1744727265023,44.9064,130.08,130.02,53.78931132]
[1744727265240,53.78931132,130.07,130.02,53.78931132]
[1744727265750,25.6875,130.08,130.03,53.78931132]
[1744727265939,79.47681132,130.08,130.03,53.78931132]
[1744727266253,44.9064,130.08,129.95,7.695]
[1744727266549,53.78931132,130.02,129.97,53.78931132]
[1744727266747,53.78931132,130.03,129.98,53.78931132]
[1744727266955,7.6903,130.04,130.0,53.78931132]
[1744727267542,61.47961132,130.04,129.99,53.78931132]
[1744727267753,7.6903,130.04,130.0,53.78931132]
[1744727268250,61.47881132,130.05,130.0,53.78931132]
[1744727268428,53.78931132,130.04,129.99,53.78931132]
[1744727269039,53.78931132,130.04,129.97,26.0]
[1744727269040,61.47881132,130.05,130.0,53.78931132]
[1744727269243,61.47881132,130.05,129.98,7.6934]
[1744727269443,53.78931132,130.04,129.98,53.78931132]
[1744727269750,18.0,130.08,130.02,53.78931132]
[1744727269954,53.78931132,130.09,130.04,53.78931132]
[1744727270154,26.9003,130.11,130.04,53.78931132]
[1744727270334,53.78931132,130.09,130.04,53.78931132]
[1744727270537,7.6858,130.11,130.05,53.78931132]
[1744727270730,61.47511132,130.11,130.05,53.78931132]
[1744727270931,53.78931132,130.09,129.97,18.98]
[1744727271138,53.78931132,130.07,130.0,26.0]
[1744727271457,53.78931132,130.03,129.97,43.98]
[1744727271648,53.78931132,130.02,129.97,71.76931132]
[1744727271850,53.78931132,130.04,129.99,53.78931132]
[1744727272443,53.78931132,130.03,129.97,17.98]
[1744727272659,53.78931132,130.03,129.98,53.78931132]
[1744727272956,7.6911,130.02,129.98,53.78931132]
[1744727273335,19.2228,130.06,129.99,53.78931132]
[1744727273541,7.6893,130.05,129.97,17.98]
[1744727273742,53.78931132,130.02,129.97,71.76931132]
[1744727274044,26.9126,130.05,129.96,26.0]
[1744727274045,53.78931132,130.03,129.98,53.78931132]
[1744727274558,7.6893,130.05,129.96,33.6946]
[1744727274761,7.6881,130.07,130.01,53.78931132]
[1744727274976,61.47741132,130.07,130.02,53.78931132]
[1744727275156,53.78931132,130.06,130.01,53.78931132]
[1744727275347,7.6881,130.07,130.01,53.78931132]
[1744727275547,53.78931132,130.06,129.99,7.6927]
[1744727275753,53.78931132,130.06,130.01,53.78931132]
[1744727275956,7.6881,130.07,130.03,53.78931132]
[1744727276154,79.45701132,130.08,130.03,53.78931132]
[1744727276760,79.45701132,130.08,130.02,53.78931132]
[1744727277263,71.76931132,130.08,130.03,53.78931132]
[1744727277866,79.45701132,130.08,130.02,53.78931132]
[1744727278067,53.78931132,130.07,130.02,53.78931132]
[1744727278363,44.8866,130.08,130.02,53.78931132]
[1744727278554,53.78931132,130.07,130.02,53.78931132]
[1744727279063,25.6677,130.08,130.05,53.78931132]
[1744727279064,17.98,130.08,130.05,53.78931132]
[1744727279248,53.78931132,130.1,130.05,53.78931132]
[1744727279453,53.78931132,130.1,130.0,26.0]
[1744727279654,53.78931132,130.1,130.05,53.78931132]
[1744727279855,26.8982,130.12,130.06,53.78931132]
[1744727280054,7.6852,130.12,130.06,53.78931132]
[1744727280253,17.96,130.13,130.09,53.78931132]
[1744727280254,7.6848,130.13,130.09,53.78931132]
[1744727280463,7.6848,130.13,130.1,53.78931132]
[1744727280769,7.7471,130.14,130.1,53.78931132]
[1744727280945,7.7471,130.14,130.06,53.78931132]
[1744727280946,0.063,130.14,130.06,53.78931132]
[1744727281146,0.063,130.14,130.13,53.78931132]
[1744727281965,0.063,130.14,130.11,26.0]
[1744727282148,0.063,130.14,130.12,53.78931132]
[1744727282477,0.063,130.14,130.13,53.78931132]
[1744727282972,0.063,130.14,130.1,7.6863]
[1744727282973,0.063,130.14,130.09,26.0]
[1744727283152,0.063,130.14,130.13,53.78931132]
[1744727283353,0.063,130.14,130.12,53.78931132]
[1744727283558,0.063,130.14,130.13,53.78931132]
[1744727283941,0.063,130.14,130.1,26.0]
[1744727284173,0.063,130.14,130.12,53.78931132]
[1744727284353,0.063,130.14,130.13,53.78931132]
[1744727285849,0.063,130.14,130.1,7.6862]
[1744727285850,0.063,130.14,130.09,26.0]
[1744727286050,0.063,130.14,130.1,53.78931132]
[1744727286369,53.85231132,130.14,130.09,53.78931132]
[1744727286564,53.85231132,130.14,130.07,53.78931132]
[1744727286565,53.78931132,130.12,130.07,53.78931132]
[1744727286871,53.78931132,130.09,130.05,53.78931132]
[1744727287069,6.2016,130.14,130.04,53.78931132]
[1744727287265,7.6875,130.08,130.05,53.78931132]
[1744727287468,7.6863,130.1,130.06,53.78931132]
[1744727287867,61.47451132,130.12,130.07,53.78931132]
[1744727288172,7.6852,130.12,130.08,53.78931132]
[1744727288369,61.47451132,130.12,130.07,53.78931132]
[1744727288669,61.47451132,130.12,130.03,33.6904]
[1744727288670,7.6852,130.12,130.03,33.6904]
[1744727288865,7.6848,130.13,130.09,53.78931132]
[1744727289460,7.6848,130.13,130.1,53.78931132]
[1744727289847,7.6848,130.13,130.09,53.78931132]
[1744727290049,53.78931132,130.12,130.06,26.0]
[1744727290355,53.78931132,130.12,130.07,53.78931132]
[1744727290662,61.47411132,130.13,130.08,53.78931132]
[1744727290969,7.6848,130.13,130.09,53.78931132]
[1744727291146,7.6848,130.13,130.1,53.78931132]
[1744727291349,0.063,130.14,130.12,53.78931132]
[1744727291564,0.063,130.14,130.13,53.78931132]
[1744727292263,0.063,130.14,130.12,53.78931132]
[1744727292466,53.85231132,130.14,130.09,53.78931132]
[1744727292879,0.063,130.14,130.12,53.78931132]
[1744727293177,0.063,130.14,130.13,53.78931132]
[1744727293363,0.063,130.14,130.13,61.47391132]
[1744727293869,0.063,130.14,130.13,159.9128715]
[1744727294454,0.063,130.22,130.18,18.64964886]
[1744727294655,0.063,130.22,130.21,53.78931132]
[1744727295267,0.063,130.22,130.18,7.6816]
[1744727295575,0.063,130.22,130.21,53.78931132]
[1744727295874,0.063,130.22,130.21,72.43896018]
[1744727296170,0.063,130.22,130.21,53.78931132]
[1744727296973,0.063,130.22,130.21,72.43896018]
[1744727297273,0.063,130.22,130.21,98.43896018]
[1744727297478,0.063,130.22,130.21,106.11886018]
[1744727298273,0.063,130.22,130.21,87.46921132]
[1744727298972,0.063,130.22,130.21,106.11886018]
[1744727299184,0.063,130.25,130.22,18.64964886]
[1744727299397,0.0001,130.25,130.24,106.11706018]
[1744727299689,0.063,130.26,130.24,159.9063715]
[1744727299995,0.063,130.26,130.25,107.57862264]
[1744727300164,0.063,130.26,130.25,72.43896018]
[1744727300366,0.0001,130.26,130.25,126.2282715]
[1744727300774,0.0001,130.26,130.25,72.43896018]
[1744727300980,0.0001,130.26,130.25,53.78931132]
[1744727301284,0.0001,130.26,130.25,72.43896018]
[1744727301481,0.0001,130.26,130.25,80.11646018]
[1744727301996,0.0001,130.28,130.27,44.64964886]
[1744727302172,0.063,130.31,130.3,44.64964886]
[1744727302506,0.063,130.31,130.3,79.78931132]
[1744727302691,0.063,130.31,130.25,26.8713]
[1744727302872,0.063,130.31,130.27,53.78931132]
[1744727303290,0.063,130.28,130.27,26.0]
[1744727303463,0.063,130.28,130.27,52.32594886]
[1744727303787,0.063,130.31,130.27,26.8672]
[1744727304179,0.063,130.31,130.28,26.0]
[1744727304376,0.063,130.31,130.28,53.78931132]
[1744727304687,0.063,130.31,130.27,7.6763]
[1744727304896,0.063,130.31,130.29,53.78931132]
[1744727305068,0.063,130.31,130.3,53.78931132]
[1744727305767,0.063,130.31,130.3,61.46381132]
[1744727306784,0.0001,130.31,130.3,61.46381132]
[1744727307390,0.0001,130.31,130.3,80.11346018]
[1744727307695,0.0001,130.31,130.3,61.46381132]
[1744727309082,0.0001,130.31,130.3,7.6745]
[1744727309276,0.0001,130.31,130.3,61.46381132]
[1744727310800,0.0001,130.31,130.3,80.11346018]
[1744727311200,0.0001,130.31,130.3,61.46381132]
[1744727311704,0.0001,130.31,130.3,7.6745]
[1744727312013,6.0524,130.39,130.33,26.0]
[1744727312205,293.42931132,130.43,130.38,53.78931132]
[1744727312406,6.5768,130.44,130.41,53.78931132]
[1744727312705,6.5768,130.44,130.36,26.0]
[1744727312878,53.78931132,130.42,130.37,79.78931132]
[1744727313079,53.78931132,130.42,130.37,53.78931132]
[1744727313389,53.78931132,130.39,130.34,53.78931132]
[1744727313595,53.78931132,130.4,130.35,53.78931132]
[1744727313798,53.78931132,130.41,130.36,53.78931132]
[1744727313997,14.2431,130.44,130.37,53.78931132]
[1744727314292,53.78931132,130.41,130.36,53.78931132]
[1744727315020,53.78931132,130.42,130.37,61.45931132]
[1744727315493,14.2433,130.44,130.38,53.78931132]
[1744727315701,53.78931132,130.43,130.38,53.78931132]
[1744727316013,0.063,130.45,130.42,53.78931132]
[1744727316187,0.063,130.45,130.38,18.64964886]
[1744727316388,0.063,130.45,130.44,53.78931132]
[1744727316892,0.063,130.45,130.44,61.45561132]
[1744727317383,0.063,130.47,130.44,125.27116018]
[1744727317583,0.063,130.47,130.46,53.78931132]
[1744727318425,0.063,130.47,130.46,72.43896018]
[1744727318583,0.0001,130.47,130.46,72.43896018]
[1744727318907,0.0001,130.47,130.46,87.45441132]
[1744727319095,0.0001,130.47,130.46,7.6651]
[1744727319296,0.0001,130.47,130.46,61.45441132]
[1744727320496,0.0001,130.47,130.45,53.78931132]
[1744727320899,0.0001,130.47,130.46,52.87764058]
[1744727321509,0.0001,130.47,130.46,60.54274058]
[1744727322511,0.0001,130.47,130.46,52.87764058]
[1744727322694,0.0001,130.47,130.45,53.78931132]
[1744727322894,0.0001,130.47,130.43,53.78931132]
[1744727323217,53.78931132,130.45,130.4,53.78931132]
[1744727323413,53.78931132,130.44,130.39,53.78931132]
[1744727323912,53.78931132,130.44,130.4,53.78931132]
[1744727324114,61.45531132,130.45,130.4,53.78931132]
[1744727324413,61.45531132,130.45,130.37,33.6702]
[1744727324716,53.78931132,130.44,130.39,53.78931132]
[1744727324893,53.78931132,130.43,130.38,53.78931132]
[1744727325093,53.78931132,130.43,130.37,26.0]
[1744727325094,53.78931132,130.42,130.37,53.78931132]
[1744727325302,7.666,130.45,130.31,265.1473]